bitfinex/quotes_BTCUSD_20240803
["timestamp","ask_amount","ask_price","bid_price","bid_amount"]
[1722704802978,1.31980142,60912.0,60911.0,0.01633218]
[1722704803181,0.99145942,60912.0,60911.0,0.01633218]
[1722704803427,1.31980142,60912.0,60911.0,0.01633218]
[1722704803632,0.99145942,60912.0,60911.0,0.01633218]
[1722704803807,1.47726066,60912.0,60911.0,0.01933218]
[1722704804536,0.66311742,60912.0,60911.0,0.01933218]
[1722704804686,0.99145942,60912.0,60911.0,0.01933218]
[1722704804897,0.17060442,60912.0,60911.0,0.01933218]
[1722704805097,0.164171,60912.0,60911.0,0.01633218]
[1722704805298,0.820855,60912.0,60911.0,0.01633218]
[1722704805457,0.825855,60912.0,60911.0,0.01633218]
[1722704805663,0.005,60912.0,60911.0,0.01633218]
[1722704805864,0.164171,60912.0,60911.0,0.01633218]
[1722704806064,0.164171,60912.0,60911.0,0.02768227]
[1722704806524,0.492513,60912.0,60911.0,0.02768227]
[1722704806757,0.9914589,60912.0,60911.0,0.01933218]
[1722704807174,0.1706039,60912.0,60911.0,0.01933218]
[1722704807375,0.164168,60913.0,60911.0,0.003]
[1722704807575,0.164168,60913.0,60911.0,0.01933218]
[1722704808316,0.00954724,60918.0,60911.0,0.01633218]
[1722704808317,0.492513,60912.0,60911.0,0.01633218]
[1722704808515,0.66311393,60912.0,60911.0,0.02133218]
[1722704808703,0.99145593,60912.0,60911.0,0.02133218]
[1722704808879,1.149197,60912.0,60911.0,0.02133218]
[1722704809052,2.06120219,60912.0,60911.0,0.01633218]
[1722704809253,2.06120219,60912.0,60911.0,0.01733218]
[1722704809254,2.03026019,60912.0,60911.0,0.01733218]
[1722704809456,2.35862516,60912.0,60911.0,0.01733218]
[1722704810015,2.35862516,60912.0,60890.0,0.010153]
[1722704810016,1.149274,60908.0,60907.0,0.01633218]
[1722704810213,1.57736016,60908.0,60907.0,0.01633218]
[1722704810430,1.90572416,60908.0,60907.0,0.01633218]
[1722704810634,0.492666,60893.0,60892.0,0.00157439]
[1722704810840,0.492666,60893.0,60892.0,0.01633218]
[1722704810965,0.492666,60893.0,60892.0,0.02777925]
[1722704811574,0.164222,60893.0,60892.0,0.02777925]
[1722704811799,0.15745924,60907.0,60892.0,0.02777925]
[1722704812004,0.492634,60897.0,60896.0,0.07875194]
[1722704812199,0.821057,60897.0,60892.0,0.01633218]
[1722704812414,0.82111,60893.0,60892.0,0.01633218]
[1722704812626,0.82111,60893.0,60892.0,0.03033218]
[1722704813051,0.82111,60893.0,60892.0,0.01633218]
[1722704813252,1.32020613,60893.0,60892.0,0.01633218]
[1722704813451,1.32020613,60893.0,60892.0,0.02733218]
[1722704813871,0.99176213,60893.0,60892.0,0.02733218]
[1722704814082,0.33487413,60893.0,60892.0,0.02733218]
[1722704814343,0.164222,60893.0,60892.0,0.02733218]
[1722704814530,0.492666,60893.0,60892.0,0.02733218]
[1722704814892,0.16422,60894.0,60892.0,0.01633218]
[1722704815105,0.165222,60893.0,60892.0,0.03033218]
[1722704815311,0.99276415,60893.0,60892.0,0.03033218]
[1722704815513,0.66432015,60893.0,60892.0,0.03033218]
[1722704815719,0.98923881,60893.0,60892.0,0.01633218]
[1722704816151,0.17165416,60893.0,60892.0,0.02533218]
[1722704816403,0.001,60893.0,60892.0,0.49013218]
[1722704816748,0.001,60893.0,60892.0,0.64759142]
[1722704817181,0.001,60893.0,60892.0,0.81339081]
[1722704817387,0.001,60893.0,60892.0,1.31625206]
[1722704817596,0.001,60893.0,60892.0,1.2748292]
[1722704817768,0.001,60893.0,60892.0,1.6812792]
[1722704817970,0.001,60893.0,60892.0,1.3528292]
[1722704818154,0.66991164,60923.0,60892.0,0.94913563]
[1722704818354,0.164183,60908.0,60902.0,0.07875194]
[1722704818610,0.15745924,60922.0,60902.0,0.09508412]
[1722704818935,0.164174,60911.0,60902.0,0.09508412]
[1722704819140,0.328352,60911.0,60902.0,0.01633218]
[1722704819349,0.164171,60912.0,60902.0,0.01633218]
[1722704819554,0.328348,60911.0,60902.0,0.01633218]
[1722704819705,0.164178,60910.0,60902.0,0.01633218]
[1722704820316,0.328354,60910.0,60902.0,0.01633218]
[1722704820520,0.164182,60908.0,60902.0,0.01633218]
[1722704820721,0.47251164,60921.0,60902.0,0.01633218]
[1722704820996,0.328305,60919.0,60902.0,0.01633218]
[1722704821201,0.492586,60903.0,60902.0,0.01633218]
[1722704821435,0.164195,60903.0,60902.0,0.01633218]
[1722704822072,0.1752,60916.0,60902.0,0.01733218]
[1722704822265,0.328372,60907.0,60902.0,0.01733218]
[1722704822437,0.32807359,60915.0,60902.0,0.01733218]
[1722704822438,0.164195,60903.0,60902.0,0.01733218]
[1722704822642,0.492586,60903.0,60902.0,0.01633218]
[1722704822849,0.492586,60903.0,60902.0,0.02033218]
[1722704823053,0.164191,60905.0,60902.0,0.02033218]
[1722704823488,0.4556,60913.0,60902.0,0.02033218]
[1722704823489,0.164195,60903.0,60902.0,0.02033218]
[1722704823692,0.328369,60907.0,60902.0,0.0317282]
[1722704823897,0.164195,60903.0,60902.0,0.02033218]
[1722704824108,0.328371,60907.0,60902.0,0.02033218]
[1722704824348,0.164191,60905.0,60902.0,0.01633218]
[1722704824571,0.164191,60905.0,60902.0,0.01733218]
[1722704824759,0.328371,60907.0,60902.0,0.01733218]
[1722704824959,0.02,60931.0,60902.0,0.01733218]
[1722704824960,0.00952023,60914.0,60903.0,0.07875194]
[1722704825287,0.164185,60907.0,60904.0,0.1974]
[1722704825494,0.492586,60903.0,60902.0,0.01633218]
[1722704825702,0.820977,60903.0,60902.0,0.01633218]
[1722704825915,0.492586,60903.0,60902.0,0.01633218]
[1722704826123,0.99160166,60903.0,60902.0,0.01633218]
[1722704826340,1.9330519,60903.0,60902.0,0.01633218]
[1722704827727,2.2614429,60903.0,60902.0,0.01633218]
[1722704827941,2.55042395,60903.0,60902.0,0.01633218]
[1722704828087,0.492642,60896.0,60895.0,0.01633218]
[1722704828308,0.821137,60891.0,60890.0,0.010153]
[1722704828514,1.73375831,60891.0,60890.0,0.010153]
[1722704828713,2.16221331,60891.0,60890.0,0.010153]
[1722704828946,2.2633638,60891.0,60890.0,0.010153]
[1722704829361,2.19521331,60891.0,60890.0,0.010153]
[1722704829609,2.6248191,60891.0,60890.0,0.010153]
[1722704829963,2.18521331,60891.0,60890.0,0.010153]
[1722704830180,2.18521331,60891.0,60890.0,0.011153]
[1722704830386,1.92917515,60891.0,60890.0,0.011153]
[1722704830823,2.19521726,60891.0,60890.0,0.011153]
[1722704831035,2.18521726,60891.0,60890.0,0.011153]
[1722704831247,2.46869699,60891.0,60890.0,0.011153]
[1722704831458,1.353958,60877.0,60870.0,0.010164]
[1722704831670,1.76291724,60877.0,60870.0,0.010164]
[1722704831885,1.86291724,60877.0,60870.0,0.010164]
[1722704832309,2.03365867,60877.0,60870.0,0.010164]
[1722704833144,0.99206843,60877.0,60870.0,0.010164]
[1722704833349,0.821327,60877.0,60876.0,0.02648518]
[1722704833555,0.821327,60877.0,60876.0,0.02748518]
[1722704833556,0.17071474,60877.0,60876.0,0.02748518]
[1722704833756,0.164265,60877.0,60876.0,0.02748518]
[1722704833959,0.97878624,60877.0,60876.0,0.011153]
[1722704834188,1.48803658,60877.0,60876.0,0.011153]
[1722704834387,2.27216758,60877.0,60876.0,0.011153]
[1722704834592,0.01,60871.0,60870.0,0.010164]
[1722704834827,0.01,60871.0,60859.0,0.010164]
[1722704834828,0.328623,60860.0,60859.0,0.010164]
[1722704835033,0.821557,60860.0,60859.0,0.010164]
[1722704835262,1.8070292,60860.0,60859.0,0.010164]
[1722704835460,1.9400292,60860.0,60859.0,0.010164]
[1722704835666,0.33866,60853.0,60850.0,0.000913]
[1722704835885,0.339535,60851.0,60850.0,0.000913]
[1722704836087,1.4251032,60851.0,60850.0,0.000913]
[1722704836213,1.4481032,60851.0,60850.0,0.000913]
[1722704836473,1.60600724,60851.0,60850.0,0.000913]
[1722704836676,1.40780724,60851.0,60850.0,0.000913]
[1722704836877,0.164335,60851.0,60850.0,0.01824518]
[1722704837077,0.330663,60853.0,60850.0,0.01824518]
[1722704837078,0.002,60853.0,60850.0,0.01824518]
[1722704837282,0.002,60853.0,60852.0,0.25497439]
[1722704837555,0.002,60853.0,60852.0,0.4556606]
[1722704837764,0.002,60853.0,60852.0,0.61154545]
[1722704838199,0.002,60853.0,60852.0,1.23454445]
[1722704838399,0.328522,60879.0,60858.0,0.4508]
[1722704838627,0.47251164,60883.0,60859.0,0.15903363]
[1722704838628,0.47251164,60864.0,60859.0,0.15903363]
[1722704838855,0.164298,60865.0,60859.0,0.16700904]
[1722704839072,0.15745924,60878.0,60859.0,0.16700904]
[1722704839073,0.164311,60860.0,60859.0,0.0095498]
[1722704839290,0.22140564,60878.0,60859.0,0.08830174]
[1722704839291,0.328539,60876.0,60859.0,0.08830174]
[1722704839495,0.00941118,60883.0,60859.0,0.08830174]
[1722704839496,0.47251164,60881.0,60866.0,0.07875194]
[1722704839704,0.004,60879.0,60874.0,0.07875194]
[1722704839909,0.004,60879.0,60874.0,0.09508412]
[1722704840110,0.328502,60883.0,60875.0,0.00946804]
[1722704840351,0.164266,60877.0,60875.0,0.00946804]
[1722704840556,0.328516,60880.0,60874.0,0.09508412]
[1722704840767,0.15745924,60889.0,60874.0,0.01633218]
[1722704840768,0.492813,60875.0,60874.0,0.01633218]
[1722704840975,0.821355,60875.0,60874.0,0.01633218]
[1722704841183,1.149897,60875.0,60874.0,0.01633218]
[1722704841387,1.75675624,60875.0,60874.0,0.01633218]
[1722704841613,1.87975624,60875.0,60874.0,0.01633218]
[1722704841868,2.05049906,60875.0,60874.0,0.01633218]
[1722704842075,1.87975624,60875.0,60874.0,0.01633218]
[1722704842303,0.90059728,60875.0,60858.0,0.1976]
[1722704842518,0.15745924,60874.0,60867.0,0.07875194]
[1722704842727,0.328547,60874.0,60867.0,0.09508412]
[1722704842937,0.164289,60868.0,60867.0,0.09508412]
[1722704843145,0.492868,60868.0,60867.0,0.01633218]
[1722704843347,0.821447,60868.0,60867.0,0.01633218]
[1722704843553,1.150026,60868.0,60867.0,0.01633218]
[1722704843961,1.30748524,60868.0,60867.0,0.01633218]
[1722704844415,0.97890624,60868.0,60867.0,0.01633218]
[1722704844841,0.165119,60868.0,60867.0,0.01633218]
[1722704845066,0.00083,60868.0,60867.0,0.63079142]
[1722704845264,0.00083,60868.0,60867.0,1.22366842]
[1722704845479,0.00083,60868.0,60867.0,0.90459234]
[1722704845683,0.00383,60868.0,60867.0,0.91659234]
[1722704845892,0.00383,60868.0,60867.0,0.74030034]
[1722704846306,0.00083,60868.0,60867.0,0.74030034]
[1722704846756,0.00183,60868.0,60867.0,0.92315961]
[1722704846956,0.00183,60868.0,60867.0,0.75886761]
[1722704847973,0.00183,60868.0,60867.0,0.74986761]
[1722704847974,0.00083,60868.0,60867.0,0.74986761]
[1722704848186,0.00083,60868.0,60867.0,0.46650892]
[1722704848354,0.00183,60868.0,60867.0,0.47550892]
[1722704848563,0.00183,60868.0,60867.0,0.01850892]
[1722704848766,0.493698,60868.0,60867.0,0.00950892]
[1722704848964,0.493698,60868.0,60862.0,0.1976]
[1722704848965,0.164296,60866.0,60863.0,0.00157439]
[1722704849171,0.1643,60864.0,60863.0,0.01633218]
[1722704849368,0.821502,60864.0,60863.0,0.01633218]
[1722704850178,1.150103,60864.0,60863.0,0.01633218]
[1722704850374,0.164335,60851.0,60849.0,0.207753]
[1722704850674,0.68246024,60864.0,60850.0,0.01724518]
[1722704850675,0.164329,60854.0,60850.0,0.01724518]
[1722704850872,0.15745924,60863.0,60851.0,0.00157439]
[1722704851077,0.15745924,60863.0,60850.0,0.01724518]
[1722704851408,0.164328,60854.0,60850.0,0.01724518]
[1722704851681,0.15745924,60863.0,60850.0,0.01724518]
[1722704851871,0.164335,60851.0,60850.0,0.01724518]
[1722704852407,0.493006,60851.0,60850.0,0.01724518]
[1722704852626,0.164335,60851.0,60850.0,0.01724518]
[1722704852857,0.493006,60851.0,60850.0,0.01724518]
[1722704853280,0.493006,60851.0,60850.0,0.02684099]
[1722704853486,0.16690596,60863.0,60850.0,0.02684099]
[1722704853694,0.17076465,60862.0,60859.0,0.07875194]
[1722704853863,0.164311,60860.0,60859.0,0.09508412]
[1722704854065,0.492934,60860.0,60859.0,0.01633218]
[1722704854266,0.99231226,60860.0,60859.0,0.02588198]
[1722704854466,0.66368926,60860.0,60859.0,0.01633218]
[1722704854693,0.328602,60864.0,60859.0,0.01633218]
[1722704854915,0.00957947,60866.0,60860.0,0.07875194]
[1722704855098,0.17074463,60865.0,60860.0,0.07875194]
[1722704855301,0.328601,60864.0,60860.0,0.07875194]
[1722704855510,0.164311,60860.0,60859.0,0.01633218]
[1722704855858,0.00083,60868.0,60859.0,0.01633218]
[1722704856073,0.001,60863.0,60860.0,0.07875194]
[1722704856493,0.328595,60866.0,60860.0,0.07875194]
[1722704856720,0.00083,60868.0,60861.0,0.20088611]
[1722704856918,0.00083,60868.0,60867.0,0.07875194]
[1722704857121,0.00083,60868.0,60867.0,0.09508412]
[1722704857324,0.00083,60868.0,60867.0,0.10459304]
[1722704857741,0.00083,60868.0,60867.0,0.26205228]
[1722704857948,0.00083,60868.0,60867.0,0.26533738]
[1722704858229,0.00083,60868.0,60867.0,0.37323724]
[1722704858640,0.00083,60868.0,60867.0,0.0258411]
[1722704859523,0.00183,60868.0,60867.0,0.0348411]
[1722704859740,0.166119,60868.0,60867.0,0.0348411]
[1722704859970,0.823277,60868.0,60867.0,0.0258411]
[1722704860186,1.32157328,60868.0,60867.0,0.0258411]
[1722704860412,1.48003252,60868.0,60867.0,0.02533218]
[1722704860839,1.80861152,60868.0,60867.0,0.02533218]
[1722704861057,2.42836669,60868.0,60867.0,0.02533218]
[1722704861296,0.164327,60854.0,60853.0,0.01633218]
[1722704861512,0.66373598,60854.0,60853.0,0.01633218]
[1722704861717,0.492982,60854.0,60853.0,0.01633218]
[1722704861919,0.66375024,60854.0,60853.0,0.01633218]
[1722704862124,0.492982,60854.0,60853.0,0.01633218]
[1722704862747,0.821637,60854.0,60853.0,0.02233218]
[1722704862951,0.822637,60854.0,60853.0,0.02233218]
[1722704863446,0.99340512,60854.0,60853.0,0.02233218]
[1722704863878,0.001,60854.0,60853.0,0.02233218]
[1722704864093,0.001,60854.0,60853.0,0.27873218]
[1722704864301,0.001,60854.0,60853.0,0.64887515]
[1722704864504,0.001,60854.0,60853.0,1.25515128]
[1722704864711,0.001,60854.0,60853.0,1.68236401]
[1722704864912,0.001,60854.0,60853.0,1.71207788]
[1722704865124,0.001,60854.0,60853.0,1.35041788]
[1722704865353,0.001,60854.0,60853.0,0.93101031]
[1722704865596,0.001,60854.0,60853.0,0.95565265]
[1722704865802,0.001,60854.0,60853.0,0.49141591]
[1722704866007,0.00083,60868.0,60853.0,0.48541591]
[1722704866210,0.17074103,60867.0,60857.0,0.07875194]
[1722704866419,0.17074103,60867.0,60864.0,0.07875194]
[1722704866622,0.17074103,60867.0,60864.0,0.09508412]
[1722704866879,0.164296,60866.0,60864.0,0.09508412]
[1722704867100,0.164296,60866.0,60864.0,0.01633218]
[1722704867311,0.00083,60868.0,60864.0,0.01633218]
[1722704867512,0.49931308,60867.0,60864.0,0.01633218]
[1722704867729,0.00083,60868.0,60864.0,0.01633218]
[1722704867934,0.00083,60868.0,60865.0,0.08032633]
[1722704868133,0.00083,60868.0,60865.0,0.00157439]
[1722704868247,0.328585,60867.0,60866.0,0.00951403]
[1722704868453,0.492894,60865.0,60864.0,0.01633218]
[1722704868650,0.00083,60868.0,60864.0,0.01633218]
[1722704868892,0.00083,60868.0,60864.0,0.02033218]
[1722704869326,0.492894,60865.0,60864.0,0.02033218]
[1722704869854,0.492894,60865.0,60864.0,0.01633218]
[1722704870170,0.99222026,60865.0,60864.0,0.01633218]
[1722704870618,0.66462426,60865.0,60864.0,0.02233218]
[1722704870998,0.99322026,60865.0,60864.0,0.02233218]
[1722704871206,1.1506795,60865.0,60864.0,0.02233218]
[1722704871407,1.30854524,60865.0,60864.0,0.006]
[1722704871581,1.73714124,60865.0,60864.0,0.006]
[1722704871789,2.42020341,60865.0,60864.0,0.006]
[1722704872029,2.81521044,60865.0,60864.0,0.006]
[1722704872253,2.82821044,60865.0,60864.0,0.006]
[1722704872461,0.493006,60851.0,60850.0,0.01724518]
[1722704872727,0.9924472,60851.0,60850.0,0.01724518]
[1722704872920,0.6637762,60851.0,60850.0,0.01724518]
[1722704873125,0.1707702,60851.0,60850.0,0.01724518]
[1722704873372,0.85703067,60865.0,60864.0,0.001]
[1722704873576,1.02778113,60865.0,60864.0,0.001]
[1722704873746,0.1643,60864.0,60863.0,0.01633218]
[1722704873885,0.66365146,60864.0,60863.0,0.01633218]
[1722704874296,0.17075046,60864.0,60863.0,0.01633218]
[1722704874934,0.25613667,60865.0,60863.0,0.02586154]
[1722704875137,0.25613667,60865.0,60864.0,0.23778557]
[1722704875345,0.25613667,60865.0,60864.0,0.24573543]
[1722704875545,0.25613667,60865.0,60864.0,0.00952425]
[1722704875959,0.25613667,60865.0,60864.0,0.49558449]
[1722704876181,0.25613667,60865.0,60864.0,1.51182072]
[1722704876409,0.10083,60868.0,60867.0,0.522877]
[1722704876619,0.10083,60868.0,60867.0,1.88718556]
[1722704876845,0.10083,60868.0,60867.0,1.57022948]
[1722704877082,0.48230969,60899.0,60879.0,0.01]
[1722704877287,0.48230969,60899.0,60885.0,0.07875194]
[1722704877288,0.164211,60897.0,60885.0,0.07875194]
[1722704877492,0.164217,60895.0,60885.0,0.07875194]
[1722704877704,0.4473,60900.0,60886.0,0.01281615]
[1722704877906,0.328413,60899.0,60886.0,0.10790027]
[1722704878108,0.4473,60900.0,60886.0,0.02586404]
[1722704878109,0.328435,60895.0,60886.0,0.02586404]
[1722704878338,0.328458,60891.0,60886.0,0.01633218]
[1722704878547,0.45676842,60900.0,60887.0,0.00952675]
[1722704878548,0.164221,60894.0,60887.0,0.00952675]
[1722704878752,0.164222,60893.0,60886.0,0.01633218]
[1722704878952,0.164223,60893.0,60887.0,0.00952675]
[1722704879152,0.328436,60895.0,60886.0,0.01633218]
[1722704879153,0.164217,60895.0,60886.0,0.01633218]
[1722704879364,0.003,60895.0,60890.0,0.07875194]
[1722704879569,0.003,60895.0,60891.0,0.01279053]
[1722704879966,0.00990438,60903.0,60891.0,0.00950632]
[1722704880177,0.1,60905.0,60887.0,0.16045924]
[1722704880393,0.164235,60888.0,60887.0,0.003]
[1722704880598,0.15745924,60904.0,60887.0,0.003]
[1722704880828,0.492706,60888.0,60887.0,0.003]
[1722704881237,0.1975,60907.0,60887.0,0.003]
[1722704881447,0.1975,60907.0,60888.0,0.23949548]
[1722704881652,0.00926,60915.0,60896.0,0.2441]
[1722704881653,0.19456,60913.0,60896.0,0.2441]
[1722704881864,0.00926,60913.0,60896.0,0.41789142]
[1722704882074,0.164185,60907.0,60896.0,0.49664336]
[1722704882283,0.173429,60913.0,60897.0,0.324954]
[1722704882480,0.173429,60913.0,60903.0,0.07875194]
[1722704882481,0.00926,60913.0,60903.0,0.07875194]
[1722704882817,0.00926,60913.0,60904.0,0.00328336]
[1722704883273,0.173429,60913.0,60905.0,0.00943485]
[1722704883465,0.164171,60912.0,60906.0,0.00328337]
[1722704883697,0.164171,60912.0,60905.0,0.00943485]
[1722704883698,0.00926,60913.0,60905.0,0.00943485]
[1722704883891,0.00926,60913.0,60903.0,0.01633218]
[1722704884108,0.328342,60912.0,60903.0,0.01633218]
[1722704884309,0.328342,60912.0,60904.0,0.01201435]
[1722704884521,0.00926,60913.0,60904.0,0.01201435]
[1722704884522,0.164174,60911.0,60904.0,0.00428376]
[1722704884725,0.01426,60913.0,60905.0,0.16231739]
[1722704884926,0.01426,60913.0,60907.0,0.07875194]
[1722704885131,0.01426,60913.0,60908.0,0.16231672]
[1722704885300,0.01426,60913.0,60909.0,0.164178]
[1722704885504,0.01426,60913.0,60911.0,0.07875194]
[1722704885717,0.00926,60913.0,60912.0,0.15745924]
[1722704885914,0.00926,60913.0,60912.0,0.16685837]
[1722704886073,0.01126,60913.0,60912.0,0.16685837]
[1722704886481,0.00926,60913.0,60912.0,0.00939913]
[1722704887201,0.00926,60913.0,60912.0,0.01566522]
[1722704887202,0.501765,60913.0,60912.0,0.01566522]
[1722704887379,1.246702,60913.0,60912.0,0.01174891]
[1722704887594,0.164171,60912.0,60911.0,0.01933218]
[1722704887804,0.492513,60912.0,60911.0,0.01933218]
[1722704887980,0.820855,60912.0,60911.0,0.01933218]
[1722704888186,0.492513,60912.0,60911.0,0.01933218]
[1722704888403,0.19456,60913.0,60911.0,0.01933218]
[1722704888404,0.00926,60913.0,60911.0,0.01933218]
[1722704888617,0.00926,60913.0,60912.0,0.42899437]
[1722704888822,0.00926,60913.0,60912.0,0.59316537]
[1722704889033,0.00926,60913.0,60912.0,0.60883059]
[1722704889242,0.01126,60913.0,60912.0,1.2922314]
[1722704889456,0.01126,60913.0,60912.0,0.4413764]
[1722704889682,0.01126,60913.0,60912.0,0.4513764]
[1722704889683,0.00926,60913.0,60912.0,0.4513764]
[1722704889885,0.00926,60913.0,60912.0,0.4413764]
[1722704890099,0.00926,60913.0,60912.0,0.36662446]
[1722704890530,0.00926,60913.0,60912.0,0.36262446]
[1722704890763,0.00926,60913.0,60912.0,0.01566522]
[1722704890975,0.01026,60913.0,60912.0,0.02466522]
[1722704891411,0.01026,60913.0,60912.0,0.18540761]
[1722704891633,0.01026,60913.0,60912.0,0.68792061]
[1722704891851,0.01026,60913.0,60912.0,0.35629546]
[1722704892076,0.01026,60913.0,60912.0,1.54657946]
[1722704892295,0.00926,60913.0,60912.0,1.55757946]
[1722704892498,0.00926,60913.0,60912.0,1.56157946]
[1722704892929,0.00926,60913.0,60912.0,1.55757946]
[1722704893133,0.00926,60913.0,60912.0,1.88592146]
[1722704893356,0.01026,60913.0,60912.0,1.89492146]
[1722704893770,0.00926,60913.0,60912.0,1.88792146]
[1722704893974,0.00926,60913.0,60912.0,1.96064896]
[1722704894188,0.01026,60913.0,60912.0,1.96963885]
[1722704894387,0.01026,60913.0,60912.0,2.12196022]
[1722704894593,0.01026,60913.0,60912.0,2.14620272]
[1722704894794,0.00926,60915.0,60914.0,1.196427]
[1722704895007,0.00926,60915.0,60914.0,1.46706622]
[1722704895212,0.00926,60915.0,60914.0,1.91926295]
[1722704896041,0.00926,60915.0,60914.0,1.99181823]
[1722704896243,0.00926,60915.0,60914.0,1.99182588]
[1722704896459,0.00926,60915.0,60914.0,3.26702588]
[1722704896662,0.00926,60915.0,60914.0,3.28102588]
[1722704896865,0.00926,60915.0,60914.0,3.20846295]
[1722704897070,0.00926,60915.0,60914.0,3.26699793]
[1722704897295,0.00926,60915.0,60914.0,2.03730495]
[1722704897492,0.00926,60915.0,60914.0,2.54980095]
[1722704897801,0.00926,60915.0,60914.0,2.02730495]
[1722704898100,0.00926,60915.0,60914.0,2.54980095]
[1722704898304,0.00926,60915.0,60914.0,3.20646295]
[1722704898439,0.00926,60915.0,60914.0,2.52980095]
[1722704898643,0.00926,60915.0,60914.0,2.02730495]
[1722704898849,0.00926,60915.0,60914.0,1.81380495]
[1722704899050,0.00926,60915.0,60914.0,0.29450495]
[1722704899256,0.01026,60915.0,60914.0,0.20343964]
[1722704899699,0.01026,60915.0,60914.0,0.18943964]
[1722704899700,0.00926,60915.0,60914.0,0.18943964]
[1722704899901,0.00926,60915.0,60914.0,0.68521817]
[1722704900152,0.01026,60915.0,60914.0,0.02964822]
[1722704900650,0.01026,60915.0,60907.0,0.00157439]
[1722704900651,0.00926,60915.0,60907.0,0.00157439]
[1722704900850,0.00926,60915.0,60909.0,0.07875194]
[1722704901065,0.00926,60915.0,60914.0,0.164165]
[1722704901177,0.00926,60915.0,60914.0,0.17379142]
[1722704901377,0.00926,60915.0,60914.0,0.18943964]
[1722704901830,0.00926,60915.0,60914.0,0.20343964]
[1722704901975,0.01026,60915.0,60914.0,0.20343964]
[1722704902192,0.01026,60915.0,60914.0,1.03426664]
[1722704902400,0.01026,60915.0,60914.0,0.69593564]
[1722704902596,0.01026,60915.0,60914.0,1.03426664]
[1722704902901,0.01026,60915.0,60914.0,0.36760464]
[1722704903353,0.01026,60915.0,60914.0,1.03426664]
[1722704903559,0.01026,60915.0,60914.0,0.20343964]
[1722704903759,0.01026,60915.0,60914.0,0.69593564]
[1722704903964,0.01026,60915.0,60914.0,0.36760464]
[1722704904387,0.01026,60915.0,60914.0,0.20343964]
[1722704904597,0.19286,60915.0,60914.0,0.0459804]
[1722704904820,0.01026,60915.0,60914.0,0.0459804]
[1722704905142,0.01026,60915.0,60914.0,0.03033218]
[1722704905340,0.01026,60915.0,60914.0,0.51612242]
[1722704905546,0.01026,60915.0,60914.0,0.69593564]
[1722704905716,0.01026,60915.0,60914.0,1.21846664]
[1722704905916,0.01026,60915.0,60914.0,0.72253964]
[1722704906118,0.01026,60915.0,60914.0,0.53833964]
[1722704906325,0.01026,60915.0,60914.0,0.52200746]
[1722704906520,0.01026,60915.0,60914.0,0.28710746]
[1722704906956,0.01026,60915.0,60914.0,0.18710746]
[1722704907109,0.19286,60915.0,60914.0,0.02964822]
[1722704907511,0.357023,60915.0,60914.0,0.014]
[1722704907727,0.01026,60915.0,60914.0,0.17145924]
[1722704908129,0.01026,60915.0,60914.0,0.18710746]
[1722704908589,0.01026,60915.0,60914.0,0.02964822]
[1722704909527,0.01026,60915.0,60914.0,0.17145924]
[1722704909762,0.01026,60915.0,60914.0,0.18710746]
[1722704911317,0.01026,60915.0,60914.0,1.43031719]
[1722704911518,0.01026,60915.0,60914.0,1.97739408]
[1722704911754,0.01026,60915.0,60914.0,1.66906308]
[1722704911957,0.01026,60915.0,60914.0,1.31544935]
[1722704912557,0.01026,60915.0,60914.0,1.30544935]
[1722704912759,0.01026,60915.0,60914.0,0.39385335]
[1722704912973,0.01026,60915.0,60914.0,0.55801835]
[1722704913169,0.01026,60915.0,60914.0,1.22468035]
[1722704913368,0.01026,60915.0,60914.0,1.21468035]
[1722704913601,0.01026,60915.0,60914.0,1.64564297]
[1722704913800,0.01026,60915.0,60914.0,1.66985351]
[1722704914103,0.01026,60915.0,60914.0,1.29728027]
[1722704914308,0.01026,60915.0,60914.0,1.24468035]
[1722704914472,0.01026,60915.0,60914.0,0.40345408]
[1722704914674,0.174423,60915.0,60914.0,0.13639411]
[1722704914881,0.502749,60915.0,60914.0,0.02964822]
[1722704915232,0.502749,60915.0,60914.0,0.014]
[1722704915607,1.41307299,60915.0,60914.0,0.014]
[1722704915971,0.820827,60914.0,60913.0,0.000913]
[1722704916224,0.99142499,60914.0,60913.0,0.01724518]
[1722704917160,0.17059799,60914.0,60913.0,0.01724518]
[1722704917382,0.492496,60914.0,60913.0,0.01724518]
[1722704917590,0.1705923,60914.0,60913.0,0.01724518]
[1722704917797,0.1705893,60914.0,60913.0,0.01724518]
[1722704918044,0.42066,60915.0,60913.0,0.01724518]
[1722704918253,0.42066,60915.0,60914.0,0.004]
[1722704918450,0.00926,60915.0,60914.0,0.004]
[1722704918579,0.3440112,60915.0,60913.0,0.01724518]
[1722704918781,0.1705882,60914.0,60913.0,0.01724518]
[1722704918983,0.1715882,60914.0,60913.0,0.02424518]
[1722704919383,0.6630842,60914.0,60913.0,0.03357344]
[1722704919790,0.9914152,60914.0,60913.0,0.03357344]
[1722704920017,0.9914152,60914.0,60913.0,0.03757344]
[1722704920018,1.7311462,60914.0,60913.0,0.03757344]
[1722704920264,1.4028152,60914.0,60913.0,0.03757344]
[1722704920465,1.7311462,60914.0,60913.0,0.03757344]
[1722704921078,2.21696064,60914.0,60913.0,0.03757344]
[1722704921280,2.21696064,60914.0,60913.0,0.03666044]
[1722704921281,2.69829164,60914.0,60913.0,0.03666044]
[1722704921436,0.2346,60900.0,60890.0,0.07296536]
[1722704921635,0.2346,60900.0,60891.0,0.00157439]
[1722704921838,0.17064062,60899.0,60888.0,0.07875194]
[1722704922046,0.164224,60893.0,60888.0,0.07875194]
[1722704922247,0.328434,60895.0,60888.0,0.1517173]
[1722704922488,0.563008,60900.0,60887.0,0.4675]
[1722704922489,0.680806,60888.0,60887.0,0.4675]
[1722704922701,1.243877,60888.0,60887.0,0.4675]
[1722704922827,0.586935,60888.0,60887.0,0.4675]
[1722704923029,0.915406,60888.0,60887.0,0.4675]
[1722704923438,0.4227,60888.0,60879.0,0.07296536]
[1722704923646,0.164242,60886.0,60879.0,0.07324103]
[1722704923852,0.4227,60888.0,60879.0,0.07324103]
[1722704923853,0.4227,60888.0,60882.0,0.07875194]
[1722704924468,0.4227,60888.0,60879.0,0.07324103]
[1722704924665,0.328501,60883.0,60877.0,0.07324103]
[1722704924941,0.4227,60888.0,60875.0,0.07875194]
[1722704925339,0.328498,60883.0,60882.0,0.011]
[1722704925564,0.492747,60883.0,60882.0,0.011]